[Event "24th Hoogeschool Zeeland 2022"]
[Site "Vlissingen"]
[Date "2022.08.13"]
[Round "9.10"]
[White "Van den Doel, Erik"]
[Black "Van der Kaap, Jos"]
[Result "1/2-1/2"]
[ECO "B01"]
[WhiteElo "2589"]
[BlackElo "2187"]
[Annotator "TA"]
[PlyCount "262"]
[EventDate "2022.08.05"]
[EventType "swiss"]
[EventCountry "NED"]
[SourceTitle "playchess.com"]
[Source "ChessBase"]
[SourceQuality "1"]
[TimeControl "40/5400+30:1800+30"]

{[%evp 37,262,66,59,59,57,47,70,27,58,49,77,76,71,37,44,48,50,25,50,56,50,50,50,50,51,51,45,44,47,43,56,43,62,37,44,45,64,39,86,80,70,52,50,52,62,53,58,54,54,31,69,41,61,49,60,60,61,42,55,0,67,58,62,38,54,31,59,54,72,33,46,57,48,27,50,13,24,19,29,-8,39,5,56,39,52,52,55,61,116,21,88,38,56,56,45,24,31,37,49,35,60,60,60,60,60,60,60,60,60,60,60,60,60,39,55,32,62,65,68,63,66,59,59,38,72,17,64,35,49,53,83,70,90,46,83,81,65,8,8,4,55,57,33,21,110,0,52,0,70,83,185,191,267,265,221,241,253,192,175,140,187,171,339,320,337,154,168,152,458,429,445,445,794,795,781,760,730,687,856,410,362,79,72,0,0,0,185,176,258,72,68,8,287,287,674,698,604,578,528,195,194,191,194,179,305,305,220,0,0,0,0,0,0,0,0,0,0,0,0,0,0,0,0,0,0,0,0]} 1. e4 {[%emt 0:00:04]} d5 {[%emt 0:00:08]} 2. exd5 {[%emt 0:00:06]} Qxd5 {[%emt 0:00:07]} 3. Nc3 {[%emt 0:00:06]} Qa5 {[%emt 0:00:06]} 4. d4 {[%emt 0:00:29]} Nf6 {[%emt 0:00:11]} 5. Nf3 {[%emt 0:06:04]} Bf5 {[%emt 0:01:00]} 6. Bd2 {[%emt 0:04:20]} e6 {[%emt 0:02:01]} 7. Be2 {[%emt 0:06:54]} Nbd7 {[%emt 0:05:45]} 8. O-O {[%emt 0:03:00]} c6 {[%emt 0:06:24]} 9. Nh4 {[%emt 0:02:29]} Bg6 {[%emt 0:03:59]} 10. Bf3 {[%emt 0:07:34]} Qc7 {[%emt 0:06:16]} 11. g3 {[%emt 0:03:32]} Bd6 {[%emt 0:01:42]} 12. a4 {[%emt 0:02:39]} a5 {[%emt 0:11:05]} 13. Re1 {[%emt 0:02:44]} O-O {[%emt 0:00:29]} 14. Nxg6 {[%emt 0:01:30]} hxg6 {[%emt 0:00:06]} 15. Bg2 {[%emt 0:00:19]} Nb6 {[%emt 0:04:18]} 16. Ne2 {[%emt 0:09:39]} Rfd8 {[%emt 0:07:56]} 17. c3 {[%emt 0:04:50]} Rd7 {[%emt 0:10:38]} 18. Qb3 {[%emt 0:05:42]} Nbd5 {[%emt 0:03:56]} 19. Nc1 {[%emt 0:02:50]} c5 {[%emt 0:03:36]} 20. dxc5 {[%emt 0:06:30]} Bxc5 {[%emt 0:00:57]} 21. Nd3 {[%emt 0:00:12]} Bd6 {[%emt 0:05:47]} 22. Rad1 {[%emt 0:06:25]} Rc8 {[%emt 0:01:22]} 23. Qb5 {[%emt 0:08:13]} Qc4 {[%emt 0:01:14]} 24. Qxc4 {[%emt 0:01:56]} Rxc4 {[%emt 0:00:05]} 25. Ra1 {[%emt 0:01:36]} (25. b3 $5 {[%cal Rb3c4]} Rcc7 26. c4 $14) 25... Rcc7 {[%emt 0:04:38]} 26. Bf1 {[%emt 0:03:52]} Rd8 {[%emt 0:06:18]} 27. Kg2 {[%emt 0:01:49]} Kf8 {[%emt 0:00:36]} 28. Nc1 {[%emt 0:00:43]} Nb6 {[%emt 0:05:35]} 29. Nb3 {[%emt 0:00:22]} Ra8 {[%emt 0:01:44]} 30. h4 {[%emt 0:04:08]} Nfd5 {[%emt 0:00:49]} 31. Nd4 {[%emt 0:00:29]} Bc5 {[%emt 0:00:35]} 32. Nf3 {[%emt 0:00:19]} Bd6 {[%emt 0:00:35]} 33. Bb5 {[%emt 0:00:28]} Nc4 {[%emt 0:00:42]} 34. Bc1 {[%emt 0:00:06]} Ncb6 {[%emt 0:01:27]} 35. Ng5 {[%emt 0:02:06]} Be7 {[%emt 0:05:53]} 36. Ne4 {[%emt 0:00:05]} Nc4 {[%emt 0:00:00]} 37. Rh1 {[%emt 0:01:29]} Nd6 {[%emt 0:00:00]} (37... Rd8 $14 {is more appropriate.}) 38. Nxd6 $16 {[%emt 0:00:26]} Bxd6 {[%emt 0:00:00]} 39. h5 {[%emt 0:00:11]} gxh5 {[%emt 0:00:00]} 40. Rxh5 {[%emt 0:00:05]} Ke7 {[%emt 0:00:00]} 41. Rh7 {[%emt 0:04:20]} Rg8 {[%emt 0:01:55]} 42. Bg5+ {[%emt 0:01:55]} Nf6 {[%emt 0:04:12]} 43. Rh4 {[%emt 0:00:14]} Rcc8 {[%emt 0:02:31]} 44. Rah1 {[%emt 0:03:17]} (44. Rd1 {feels hotter.} Rh8 45. Rhd4 Rhd8 46. f4) 44... Be5 {[%emt 0:01:17]} 45. Kf3 {[%emt 0:06:08]} Rgd8 {[%emt 0:00:55]} 46. Ke2 {[%emt 0:00:08]} Rd5 {[%emt 0:06:33]} 47. Be3 {[%emt 0:02:12]} Rdd8 {[%emt 0:01:42]} 48. Bg5 {[%emt 0:02:23]} Rd5 {[%emt 0:00:21]} 49. Bc1 {[%emt 0:01:08]} Rdd8 {[%emt 0:00:44]} 50. Bd2 {[%emt 0:01:28]} Nd5 {[%emt 0:02:53]} 51. Bd3 {[%emt 0:02:16]} Nf6 {[%emt 0:00:48]} 52. Bc2 {[%emt 0:00:42]} Nd5 {[%emt 0:01:04]} 53. Be4 {[%emt 0:00:38]} Rc4 {[%emt 0:01:56]} 54. Bg2 {[%emt 0:00:51]} Rc7 {[%emt 0:03:47]} 55. Bf3 {[%emt 0:02:19]} g6 {[%emt 0:00:38]} 56. Bg2 {[%emt 0:01:04]} Bf6 {[%emt 0:01:30]} (56... Nb6 {looks sharper.} 57. Be3 Nc4 58. Bc1 Bf6) 57. Re4 {[%emt 0:04:53]} Rcd7 {[%emt 0:01:07]} (57... Nb6 {is interesting.} 58. Bf4 Rcc8 59. Rd1 Nc4) 58. Ra1 {[%emt 0:00:27] [#]} (58. Rd1 {seems wilder.} Nb6 59. Bf3 Rd6 60. Rg4) 58... Rc8 {[%emt 0:01:50]} (58... Nb4 $1 $11 59. Be3 Nc2 60. Bc5+ Ke8) 59. Ra3 {[%emt 0:00:15]} Rd6 {[%emt 0:01:57]} (59... Nb6 $1 $11) 60. Rb3 $14 {[%emt 0:00:39]} Rb6 {[%emt 0:00:22]} 61. Rb5 {[%emt 0:00:32]} Rxb5 {[%emt 0:00:32]} 62. axb5 {[%emt 0:00:05]} Rc5 {[%emt 0:00:37]} (62... Kd6 $14) 63. Kd1 {[%emt 0:03:20]} (63. c4 $16 Nb4 64. Be3) 63... Rc7 {[%emt 0:01:08]} (63... Nb6 $11) 64. Bf1 {[%emt 0:00:35]} ({White should play} 64. Kc2 $16) 64... Rc8 {[%emt 0:00:13]} 65. Ra4 {[%emt 0:00:46]} b6 {[%emt 0:01:08]} 66. Ke2 {[%emt 0:01:24]} Be5 {[%emt 0:00:18]} 67. Re4 {[%emt 0:00:28]} Bf6 {[%emt 0:00:22]} 68. Bg2 {[%emt 0:01:44]} Rd8 {[%emt 0:00:42]} 69. Rc4 {[%emt 0:00:08]} Rd6 {[%emt 0:01:58]} 70. Rc8 {[%emt 0:00:06]} Rd8 {[%emt 0:00:12]} 71. Rc6 {[%emt 0:00:33]} Rd6 $1 {[%emt 0:00:15]} 72. Rc4 {[%emt 0:01:31]} Kd7 {[%emt 0:00:54]} 73. Be1 {[%emt 0:00:45]} Be5 {[%emt 0:00:31]} 74. Rh4 {[%emt 0:00:08]} Ke7 {[%emt 0:00:31]} 75. Be4 {[%emt 0:00:28]} Rd8 {[%emt 0:00:29]} 76. Bd2 {[%emt 0:00:13]} Nc7 {[%emt 0:01:18]} 77. Bc6 {[%emt 0:00:10]} Nd5 {[%emt 0:00:21]} 78. Re4 {[%emt 0:00:37]} Bf6 {[%emt 0:01:01]} 79. Rc4 {[%emt 0:00:32]} Be5 {[%emt 0:00:37]} 80. Be1 {[%emt 0:00:48]} Bd6 {[%emt 0:00:30]} 81. Rh4 {[%emt 0:00:41]} (81. Bxd5 $16 exd5 82. Rc6) 81... Be5 {[%emt 0:00:13]} (81... Bc5 $11 {is superior.}) 82. f4 {[%emt 0:00:47]} Bc7 {[%emt 0:00:58]} 83. Bf2 {[%emt 0:00:19]} Rb8 {[%emt 0:00:33]} 84. Bd4 {[%emt 0:00:54]} Bd6 {[%emt 0:00:14]} 85. Kd3 {[%emt 0:00:13]} Nf6 {[%emt 0:00:23]} 86. Rh1 {[%emt 0:00:57]} Nd7 {[%emt 0:00:42]} 87. Ke4 {[%emt 0:00:46]} ({White should try} 87. Bxd7 $14 Kxd7 88. Ke4) 87... Nc5+ $11 {[%emt 0:00:22]} 88. Kf3 {[%emt 0:00:20]} Nb3 {[%emt 0:00:18]} (88... Nd3 $11) 89. Bg7 {[%emt 0:00:46]} Rg8 {[%emt 0:00:21]} 90. Rh7 {[%emt 0:00:09]} Nc5 {[%emt 0:00:50]} (90... a4 $11) 91. c4 {[%emt 0:00:36]} (91. Bh6 $1 $16) 91... Nd3 {[%emt 0:00:23]} (91... Nb3 $1 $11) 92. Ke2 {[%emt 0:00:31]} (92. Be4 $1 $14 Nc5 93. Bxg6 $1 Rxg7 94. Rxg7) 92... Nb4 {[%emt 0:00:56]} (92... Rxg7 $1 $11 93. Rxg7 Nxb2) 93. Be4 {[%emt 0:00:18]} Bc5 {[%emt 0:00:22]} (93... Rc8 $16) 94. b3 {[%emt 0:00:28]} Rd8 {[%emt 0:00:26]} (94... Na2 $142) 95. Bh6 $18 {[%emt 0:00:31]} Rg8 {[%emt 0:00:37]} 96. Bg5+ {[%emt 0:00:08]} Ke8 {[%emt 0:00:31]} 97. Bc6+ {[%emt 0:00:48]} Kf8 {[%emt 0:00:05]} 98. Bf6 {[%emt 0:00:17]} Be7 {[%emt 0:01:03]} (98... Nc2 $16 {keeps fighting.}) 99. Bd4 {[%emt 0:00:22]} Bd8 $2 {[%emt 0:00:25]} (99... Bc5 {is a better defense.}) 100. Be4 $18 {[%emt 0:00:52]} Ke8 {[%emt 0:00:26]} 101. c5 {[%emt 0:00:25]} (101. g4 $18 {has better winning chances.}) 101... bxc5 $16 {[%emt 0:00:23]} 102. Bxc5 {[%emt 0:00:03]} Nd5 $2 {[%emt 0:00:12]} (102... Be7 $16 {is more resistant.} 103. Ba7 Bd6) 103. Bxd5 $18 {[%emt 0:00:27]} exd5 {[%emt 0:00:04]} 104. b6 {[%emt 0:00:04]} Kd7 {[%emt 0:01:19]} (104... g5 $142 105. f5 g4) 105. Rxf7+ $18 {[%emt 0:00:30]} Kc6 {[%emt 0:00:19]} 106. Bd4 {[%emt 0:00:55]} (106. b7 Bc7 $18) 106... Re8+ {[%emt 0:00:22]} 107. Kd3 {[%emt 0:00:09]} Re6 {[%emt 0:00:11]} 108. Ra7 {[%emt 0:01:16]} (108. b7 $142 Bc7 109. Be5 Rxe5 110. fxe5 Bxe5 111. Rg7 $3 {[%mdl 512]}) 108... Re4 $18 {[%emt 0:01:19] [#]} 109. Bf2 $2 {[%emt 0:01:00]} (109. Ra6 $1 $18 {and the rest is easy.}) 109... Rb4 $16 {[%emt 0:00:21] [#]} 110. Rg7 {[%emt 0:00:18]} (110. Rxa5 Rxb3+ 111. Kc2 Bxb6 $11) (110. Kc2 $1 $16) 110... Rxb3+ $11 {[%emt 0:00:38]} 111. Kc2 {[%emt 0:00:22]} Rb4 $2 {[%emt 0:00:19]} (111... Rb2+ $1 $11 {and Black stays safe.} 112. Kxb2 Bf6+ 113. Kb3 Bxg7) 112. Rxg6+ $18 {[%emt 0:00:11]} Kb7 {[%emt 0:01:16]} (112... Kd7 $142 113. Kc3 Rb5) 113. f5 $2 {[%emt 0:01:06]} (113. Rd6 $18 {and White stays clearly on top.} Bxb6 114. Bxb6 Rxb6 115. Rxb6+ (115. Rxd5 a4 $16) 115... Kxb6 116. f5) 113... a4 $16 {[%emt 0:00:00]} 114. Rd6 {[%emt 0:00:21]} ({Better is} 114. Rg7+ $14 Kc6 115. Rg6+ Kd7 116. b7) 114... Bg5 $2 {[%emt 0:00:28][%mdl 8192]} (114... a3 $11) 115. Rd7+ $18 {[%emt 0:00:21]} ({Less strong is} 115. Rxd5 Bf6 $18) 115... Kc6 $2 {[%emt 0:00:29]} (115... Kb8 116. Rxd5 a3) 116. Rc7+ $18 {[%emt 0:00:46]} Kb5 {[%emt 0:00:24]} 117. Rc8 {[%emt 0:00:22]} Ka6 {[%emt 0:00:32]} 118. Rg8 $2 {[%emt 0:00:31]} (118. Bc5 {aiming for Ra8+.} Rb5 119. Ra8+ Kb7 120. Ra7+ Kc8 121. Ra8+ Kb7 122. Ra7+ Kc8 123. Bd4) 118... Bf6 $18 {[%emt 0:00:05]} 119. Ra8+ {[%emt 0:00:46]} Kb7 {[%emt 0:00:14]} 120. Ra7+ {[%emt 0:00:05]} Kb8 {[%emt 0:00:24]} (120... Kc8 {was worth a try.}) 121. Be3 $18 {[%emt 0:00:22]} Be5 {[%emt 0:00:41]} 122. f6 $2 {[%emt 0:00:21]} (122. Re7 $18 Bd6 123. Rd7) 122... Bxf6 $11 {[%emt 0:00:53]} 123. Bf4+ {[%emt 0:00:04]} Kc8 {[%emt 0:00:14]} 124. Rc7+ {[%emt 0:00:05]} Kd8 {[%emt 0:00:17]} 125. b7 {[%emt 0:00:05]} a3 {[%emt 0:00:47]} 126. Rc8+ {[%emt 0:02:01]} Kd7 {[%emt 0:00:08]} 127. b8=Q {[%emt 0:00:05]} Rxb8 {[%emt 0:00:06]} 128. Rxb8 {[%emt 0:00:03]} a2 {[%emt 0:00:05]} 129. Rb7+ {[%emt 0:00:17]} Kc6 {[%emt 0:01:42]} 130. Ra7 {[%emt 0:00:03]} ({Wrong is} 130. Rc7+ $2 Kb6 131. Kd2 a1=Q $19) 130... a1=Q {[%emt 0:01:31]} 131. Rxa1 {[%emt 0:00:03]} Bxa1 {[%emt 0:00:00]} 1/2-1/2

[Event "24th Hoogeschool Zeeland 2022"]
[Site "Vlissingen"]
[Date "2022.08.13"]
[Round "9.11"]
[White "Honkoop, Gilian"]
[Black "Schoppen, Casper"]
[Result "0-1"]
[ECO "E61"]
[WhiteElo "2205"]
[BlackElo "2507"]
[Annotator "TA"]
[PlyCount "90"]
[EventDate "2022.08.05"]
[EventType "swiss"]
[EventCountry "NED"]
[SourceTitle "playchess.com"]
[Source "ChessBase"]
[SourceQuality "1"]
[TimeControl "40/5400+30:1800+30"]

{[%evp 17,90,15,24,-74,-8,-21,61,25,36,26,37,19,12,14,19,29,28,13,34,0,0,0,0,0,-4,-46,-33,-45,-8,-10,-26,-31,0,0,15,0,54,58,54,42,243,238,228,256,224,0,0,-77,-75,-99,-71,-122,-83,-155,-158,-221,-108,-108,-76,-117,-102,-246,-233,-481,-477,-447,-418,-418,-418,-418,-418,-502,-481,-592,-580]} 1. d4 {[%emt 0:00:02]} Nf6 {[%emt 0:09:58]} 2. Nf3 {[%emt 0:00:06]} g6 {[%emt 0:01:24]} 3. c4 {[%emt 0:00:32]} Bg7 {[%emt 0:00:06]} 4. Nc3 {[%emt 0:00:03]} O-O {[%emt 0:00:44]} 5. Bg5 {[%emt 0:00:29]} d6 {[%emt 0:00:11]} 6. e3 {[%emt 0:00:04]} c5 {[%emt 0:01:57]} 7. Be2 {[%emt 0:02:24]} h6 {[%emt 0:01:00]} 8. Bh4 {[%emt 0:00:22]} g5 {[%emt 0:01:08]} 9. Bg3 {[%emt 0:00:05]} Nh5 {[%emt 0:01:23]} 10. Qc2 {[%emt 0:05:17] E61: King's Indian: Early deviations for White, including Smyslov System.} (10. dxc5 $11 dxc5 11. Be5) 10... Nxg3 {[%emt 0:09:14]} ({Black should play} 10... g4 $1 $17 {[%cal Rg4f3]} 11. Nh4 cxd4 12. exd4 Nc6) 11. hxg3 $11 {[%emt 0:00:42][%cal Of3g5] aiming for Nxg5!} (11. fxg3 g4 12. Nh4 cxd4 13. exd4 Nc6 $15) 11... e6 {[%emt 0:00:17] [#]} (11... g4 $1 $11 12. Nh2 (12. Ng5 $2 f5 $19) 12... cxd4 13. exd4 f5) 12. Rd1 $146 {[%emt 0:08:04] White is slightly better.} ({Predecessor:} 12. O-O-O Qe7 13. g4 Nc6 14. a3 f5 15. gxf5 cxd4 16. Nxd4 Nxd4 17. exd4 exf5 18. Nd5 {1-0 (36) Efimov,I (2398)-Mouradian,K (2185) Beirut 2014}) 12... Qe7 {[%emt 0:03:24]} 13. d5 {[%emt 0:01:53]} Na6 {[%emt 0:01:59][%cal Bb8a6,Ba6c7,Bc7e8,Be8f6][%mdl 32]} 14. O-O {[%emt 0:03:30]} (14. dxe6 {looks sharper.} Nb4 15. Qb1 Bxe6 16. a3) 14... Nc7 {[%emt 0:17:41]} 15. dxe6 {[%emt 0:24:45]} Bxe6 {[%emt 0:03:19]} 16. Rd2 {[%emt 0:01:14]} Rad8 {[%emt 0:02:44]} 17. Rfd1 {[%emt 0:00:05]} b6 {[%emt 0:00:56]} 18. Qa4 {[%emt 0:06:41]} Bxc3 {[%emt 0:03:11]} 19. bxc3 {[%emt 0:00:02]} Ne8 $1 {[%emt 0:12:31]} 20. Qc2 {[%emt 0:11:53]} Nf6 {[%emt 0:05:38]} 21. Nh2 {[%emt 0:03:00]} Kg7 {[%emt 0:02:11]} 22. Nf1 {[%emt 0:01:07]} Bc8 {[%emt 0:02:24]} 23. Bd3 {[%emt 0:02:38]} Rfe8 {[%emt 0:04:17]} 24. Re2 {[%emt 0:05:45]} d5 {[%emt 0:06:12]} (24... h5 $15 {might be stronger.}) 25. cxd5 {[%emt 0:00:23]} Rxd5 {[%emt 0:01:21][%cal Oc5c4]} 26. e4 {[%emt 0:01:20][%cal Be3e4,Be4e5][%mdl 32]} Rdd8 {[%emt 0:00:33]} (26... c4 $1 $11 27. Bxc4 (27. exd5 $2 cxd3 28. Rxd3 Qxe2 $19) 27... Rxd1 28. Qxd1 Qc5) 27. e5 $14 {[%emt 0:01:58]} Ng4 {[%emt 0:00:32]} 28. Rde1 $1 {[%emt 0:01:58]} Rd5 $2 {[%emt 0:03:58] [#]} (28... h5 $14) 29. Bb5 $1 $18 {[%emt 0:02:05]} Red8 {[%emt 0:01:17]} 30. Bc4 {[%emt 0:00:16]} Rxe5 {[%emt 0:02:07]} 31. Rxe5 {[%emt 0:01:32]} (31. f3 $18) 31... Nxe5 $11 {[%emt 0:00:02]} 32. Qe4 {[%emt 0:00:41] [#] Inhibits Nf3+.} (32. Bxf7 $1 $11 Nf3+ 33. gxf3 Qxf7 34. Re3) 32... Re8 $1 $17 {[%emt 0:00:24]} ({Don't play} 32... f6 33. f4 $16) 33. Bb5 {[%emt 0:00:44]} Bb7 {[%emt 0:02:57]} 34. Qa4 {[%emt 0:10:54]} ({White should try} 34. Qe2 Bc6 35. Bxc6 Nxc6 36. Ne3) 34... Rd8 {[%emt 0:00:00][%cal Oe5f3] White must now prevent ...Nf3+!} 35. Ne3 {[%emt 0:00:21]} ({Better is} 35. Qxa7 Ra8 36. Ne3 Rxa7 37. Nf5+ Kf8 38. Nxe7 Kxe7 39. Rxe5+ Kd6 40. Re3) 35... Qf6 {[%emt 0:00:00][%cal Oe5f3] Hoping for ...Nf3+!} 36. Be2 {[%emt 0:03:48] Inhibits Nf3+.} (36. Rd1 $17) 36... a6 {[%emt 0:00:01]} (36... Rd2 $19 {has better winning chances. Strongly threatening ...Nd3.} 37. g4 Bc8) 37. Qc2 {[%emt 0:00:53] Prevents Nd3.} Bc8 {[%emt 0:00:35] Black is more active.} 38. g4 {[%emt 0:00:39]} Qf4 {[%emt 0:00:48][%cal Re5g4]} 39. g3 {[%emt 0:01:07]} (39. Rd1 $17 Rxd1+ 40. Qxd1) 39... Nf3+ $19 {[%emt 0:00:27]} 40. Kf1 $2 {[%emt 0:00:30] [#]} (40. Bxf3 Qxf3 41. Qe2 Qxe2 42. Rxe2) 40... Nxe1 $1 {[%emt 0:00:18]} 41. Kxe1 {[%emt 0:01:47]} Qe5 {[%emt 0:01:28]} 42. a4 {[%emt 0:00:55]} Be6 {[%emt 0:01:40][%cal Ob6b5]} 43. Kf1 {[%emt 0:01:37]} a5 {[%emt 0:03:43]} 44. Bf3 {[%emt 0:02:24]} Qd6 {[%emt 0:04:01]} 45. Qe4 {[%emt 0:01:02]} Qd3+ {[%emt 0:00:10] What a bad dream for White.  Weighted Error Value: White=0.40/Black=0.24 (precise)} 0-1

[Event "24th Hoogeschool Zeeland 2022"]
[Site "Vlissingen"]
[Date "2022.08.13"]
[Round "9.12"]
[White "Duchene, Rene"]
[Black "Sorbe, Stephane"]
[Result "0-1"]
[ECO "A11"]
[WhiteElo "2137"]
[BlackElo "2352"]
[Annotator "TA"]
[PlyCount "114"]
[EventDate "2022.08.05"]
[EventType "swiss"]
[EventCountry "NED"]
[SourceTitle "playchess.com"]
[Source "ChessBase"]
[SourceQuality "1"]
[TimeControl "40/5400+30:1800+30"]

{[%evp 9,114,39,39,28,33,30,27,26,25,32,28,22,28,0,41,4,7,0,0,11,26,-11,-19,-18,-20,-13,-2,-13,-12,-21,0,-37,-8,-25,-16,-50,-56,-55,-4,-44,-13,-18,0,-8,-8,-10,6,-11,0,-14,0,-7,0,0,-12,-54,-53,-58,-66,-66,-62,-189,-188,-188,-174,-201,-199,-209,-120,-173,-213,-317,-315,-272,-209,-245,-259,-259,-245,-241,-241,-237,-205,-198,-156,-286,-285,-286,-286,-286,-286,-352,-352,-329,-285,-318,-259,-274,-244,-353,-351,-329,-330,-1041,-756,-991,-994]} 1. Nf3 {[%emt 0:00:13]} d5 {[%emt 0:00:11]} 2. c4 {[%emt 0:00:09]} c6 {[%emt 0:00:07]} 3. e3 {[%emt 0:00:10]} Nf6 {[%emt 0:00:15]} 4. Nc3 {[%emt 0:00:06]} Bg4 {[%emt 0:01:18]} 5. Qb3 {[%emt 0:01:57]} Qb6 {[%emt 0:00:34]} 6. Ne5 {[%emt 0:00:49] A11: English Opening: 1...c6.} Be6 {[%emt 0:01:19]} 7. d4 {[%emt 0:01:41]} g6 {[%emt 0:05:30]} 8. Be2 {[%emt 0:07:49] White has an edge.} Bg7 {[%emt 0:01:44]} 9. O-O {[%emt 0:00:06]} O-O {[%emt 0:00:26]} 10. Bd2 {[%emt 0:11:34] [#]} Rd8 $146 {[%emt 0:03:42]} ({Predecessor:} 10... Nbd7 11. f4 dxc4 12. Bxc4 Bxc4 13. Nxc4 Qxb3 14. axb3 Rfd8 15. b4 a6 16. h3 e6 {1-0 (41) Iturrizaga Bonelli,E (2597)-Deviatkin,A (2436) Moscow 2019}) 11. Rfc1 {[%emt 0:01:34]} Nbd7 {[%emt 0:01:43]} 12. cxd5 {[%emt 0:06:17]} Nxd5 {[%emt 0:15:42]} 13. Nxd7 {[%emt 0:01:38]} Nxc3 {[%emt 0:06:04]} 14. bxc3 {[%emt 0:13:03]} Qc7 {[%emt 0:07:22]} 15. Bc4 {[%emt 0:05:32]} Bxc4 {[%emt 0:00:35]} 16. Qxc4 {[%emt 0:00:06] And now Nc5 would win.} Rxd7 {[%emt 0:00:13]} 17. Rab1 {[%emt 0:00:48]} e5 {[%emt 0:02:49]} 18. Rd1 {[%emt 0:04:16]} Rad8 {[%emt 0:02:00][%cal Oc6c5]} 19. Be1 {[%emt 0:05:12]} Qa5 {[%emt 0:07:07]} 20. Qe2 {[%emt 0:05:09]} h5 {[%emt 0:02:29]} 21. h3 {[%emt 0:02:05]} Qa3 {[%emt 0:04:48]} 22. Rb3 {[%emt 0:00:45]} Qe7 {[%emt 0:00:18][%cal Re5d4]} 23. Qc4 {[%emt 0:01:32]} Rc7 {[%emt 0:14:15]} ({Black should try} 23... c5 $15) 24. a4 {[%emt 0:01:35]} Rdd7 {[%emt 0:01:15]} (24... c5 $5 {[%cal Rc5d4]}) 25. Rdb1 {[%emt 0:04:12]} Qd8 {[%emt 0:01:05]} 26. Rd1 {[%emt 0:03:13]} Qg5 {[%emt 0:01:14]} 27. Rbb1 {[%emt 0:01:18]} Qf5 {[%emt 0:01:03]} 28. Qe2 {[%emt 0:01:16]} a6 {[%emt 0:01:53]} 29. a5 {[%emt 0:09:20]} Rc8 {[%emt 0:01:34]} 30. Rb3 {[%emt 0:00:36]} Re8 {[%emt 0:00:43]} 31. Qb2 {[%emt 0:01:08]} Ree7 {[%emt 0:00:30]} 32. Rb1 {[%emt 0:01:10]} exd4 {[%emt 0:01:53]} 33. cxd4 {[%emt 0:00:17]} c5 {[%emt 0:00:10][%cal Rc5d4]} 34. Bc3 {[%emt 0:00:58]} cxd4 {[%emt 0:00:18] Black is more active.} 35. Bxd4 {[%emt 0:00:18]} ({Only move:} 35. exd4 $15 Rc7 36. Rd1) 35... Bxd4 $19 {[%emt 0:00:21]} 36. exd4 {[%emt 0:00:07]} Qxa5 {[%emt 0:00:30]} 37. Rb6 {[%emt 0:02:12]} Re1+ {[%emt 0:01:33]} 38. Rxe1 {[%emt 0:00:33]} Qxe1+ {[%emt 0:00:04][%mdl 4096] Endgame KQR-KQR} 39. Kh2 {[%emt 0:00:05]} Qe4 {[%emt 0:00:30]} 40. g3 {[%emt 0:04:49]} (40. Qb3 $142) 40... h4 {[%emt 0:04:33]} (40... Rxd4 41. Rxb7 Rd8 42. Rb4 $17) 41. gxh4 {[%emt 0:31:18]} Qf4+ {[%emt 0:34:58]} ({Don't go for} 41... Rxd4 $2 42. Rxb7 Qxh4 43. Rb3 $19) (41... Qxd4 42. Qxd4 Rxd4 43. Rxb7 $17) 42. Kg2 {[%emt 0:02:26]} Qxh4 {[%emt 0:00:51]} ({Not} 42... Rxd4 43. Qc3) 43. Qb3 {[%emt 0:00:00]} Qe4+ {[%emt 0:00:00]} ({And not} 43... Rxd4 44. Rxg6+ Kf8 45. Qa3+ Ke8 46. Rb6 $15) 44. Qf3 {[%emt 0:00:00]} Qxd4 {[%emt 0:00:00]} 45. Rxb7 {[%emt 0:00:00]} Rxb7 {[%emt 0:00:00]} 46. Qxb7 {[%emt 0:00:00] KQ-KQ} Qc4 {[%emt 0:00:00] ...Qb5 is the strong threat.} 47. Qb8+ {[%emt 0:00:00] [#]} (47. h4 $17) 47... Kh7 $1 {[%emt 0:00:00]} 48. Qe5 {[%emt 0:00:00] [#]} Qb5 $1 {[%emt 0:00:00]} 49. Qf6 {[%emt 0:00:00]} Qd5+ {[%emt 0:00:00]} 50. Kh2 {[%emt 0:00:00]} a5 {[%emt 0:00:00][%cal Ba6a5,Ba5a4][%mdl 32]} 51. Qf4 {[%emt 0:00:00]} Kg7 {[%emt 0:00:00] White must now prevent ...Qf5.} 52. h4 {[%emt 0:00:00]} Qc5 {[%emt 0:00:00]} 53. Kg3 {[%emt 0:00:00]} Qc3+ {[%emt 0:00:00]} 54. Kh2 {[%emt 0:00:00]} (54. f3 $142) 54... Qf6 {[%emt 0:00:00]} 55. Qg3 {[%emt 0:00:00]} a4 {[%emt 0:00:00]} 56. Kh3 $2 {[%emt 0:00:00]} (56. h5) 56... Qf5+ {[%emt 0:01:00]} 57. Kh2 {[%emt 0:00:00]} Qc5 {[%emt 0:00:21] Weighted Error Value: White=0.36/Black=0.09 (flawless)} 0-1